bitfinex/quotes_ETHUSD_20241204
["timestamp","ask_amount","ask_price","bid_price","bid_amount"]
[1733356130719,2.60414,3840.1,3839.7,1.1313]
[1733356131029,2.60436,3839.8,3839.0,1.1543]
[1733356131210,0.89562264,3839.7,3839.0,1.1543]
[1733356131527,2.60459,3839.4,3839.1,0.52808716]
[1733356132318,2.6047,3839.2,3839.1,0.52808716]
[1733356132518,2.60498,3838.8,3837.8,1.1761]
[1733356132724,2.60507,3838.7,3837.8,1.66223804]
[1733356132889,3.70879029,3838.8,3837.8,1.66223804]
[1733356133088,2.24092049,3838.7,3837.8,1.66223804]
[1733356133406,5.91813498,3838.7,3837.8,1.66223804]
[1733356133592,1.07216449,3838.8,3837.8,1.66223804]
[1733356133926,2.00027976,3838.7,3837.8,1.1761]
[1733356134148,1.07216449,3838.6,3837.8,1.1761]
[1733356134287,0.9281782,3838.5,3837.8,1.1761]
[1733356134627,1.07216449,3838.6,3837.8,1.1761]
[1733356134830,0.89634568,3838.5,3837.8,1.1761]
[1733356135129,1.3448136,3838.6,3837.8,1.554296]
[1733356135288,1.3448136,3838.6,3837.4,0.53047635]
[1733356135289,0.89611062,3838.5,3837.4,1.133]
[1733356135488,0.89611062,3838.5,3837.0,1.084]
[1733356135489,1.07216449,3838.1,3837.0,1.084]
[1733356135836,1.07216449,3838.1,3836.4,1.61926561]
[1733356135837,1.07216449,3837.7,3836.4,1.084]
[1733356136016,1.07216449,3837.4,3836.4,1.084]
[1733356136190,0.0316358,3837.5,3836.4,1.084]
[1733356136613,4.10380029,3837.5,3836.4,1.084]
[1733356136923,2.60599,3837.3,3836.4,1.084]
[1733356137165,2.60614,3837.1,3836.4,1.084]
[1733356137489,0.0316358,3837.0,3836.4,1.084]
[1733356137686,4.07216449,3837.6,3836.4,1.084]
[1733356137687,2.60634,3836.8,3836.4,1.084]
[1733356138127,2.60649,3836.6,3836.0,1.367]
[1733356138300,2.60636,3836.8,3836.0,1.367]
[1733356138502,2.60641,3836.7,3836.0,1.367]
[1733356138893,2.60611,3837.2,3836.0,1.367]
[1733356138894,0.0316358,3837.1,3836.0,1.367]
[1733356139094,0.0316358,3837.1,3836.0,0.3]
[1733356139095,2.60681,3836.1,3836.0,0.3]
[1733356140841,0.0316358,3836.3,3835.2,1.1102]
[1733356141008,2.60687,3836.1,3835.2,1.1102]
[1733356141209,2.60712,3835.7,3835.2,1.1102]
[1733356141404,2.6071,3835.7,3835.2,1.1102]
[1733356141605,3.0,3836.0,3835.2,1.1102]
[1733356141833,2.6068,3836.2,3835.2,1.1102]
[1733356142035,0.0316358,3836.1,3835.2,1.1102]
[1733356142242,2.60671,3836.3,3835.2,1.1102]
[1733356142439,4.07216449,3836.9,3835.2,1.1102]
[1733356142440,2.60665,3836.4,3835.2,1.1102]
[1733356142746,3.67810449,3837.4,3835.4,1.1102]
[1733356142747,0.0316358,3837.3,3835.4,1.1102]
[1733356142905,2.60606,3837.2,3835.4,1.1102]
[1733356143284,2.60695,3835.9,3835.4,1.1102]
[1733356143544,2.60712,3835.7,3835.4,1.1102]
[1733356143860,2.60633,3836.8,3835.0,1.1102]
[1733356143861,2.60742,3835.2,3835.0,1.1102]
[1733356144343,0.0316358,3835.6,3832.7,1.1102]
[1733356144533,2.60741,3835.3,3833.6,1.078]
[1733356144720,2.60758,3835.0,3833.7,1.078]
[1733356144929,2.60758,3835.0,3833.7,3.68644]
[1733356145126,2.6071,3835.7,3833.8,1.078]
[1733356145448,2.60744,3835.2,3833.9,1.078]
[1733356145606,2.6387158,3835.7,3834.1,1.078]
[1733356145607,0.0316358,3835.7,3834.1,1.078]
[1733356145811,2.60776,3834.7,3834.2,1.078]
[1733356146345,2.60744,3835.2,3834.2,1.078]
[1733356146346,2.60784,3834.6,3834.2,1.078]
[1733356146532,2.60766,3834.9,3834.2,1.078]
[1733356146853,3.0,3835.9,3834.3,1.078]
[1733356147051,0.0316358,3836.3,3834.5,1.078]
[1733356147211,2.60709,3835.7,3834.5,1.078]
[1733356147639,2.60681,3836.1,3834.5,1.078]
[1733356147813,2.60729,3835.4,3834.5,1.078]
[1733356148012,2.60674,3836.2,3834.5,1.078]
[1733356148244,3.0,3836.1,3834.5,1.078]
[1733356148445,2.60705,3835.8,3834.7,1.078]
[1733356148755,2.6071,3835.7,3834.7,1.078]
[1733356148922,2.6071,3835.7,3834.6,0.368594]
[1733356148923,0.0316358,3835.6,3833.8,1.078]
[1733356149126,2.60777,3834.7,3833.8,1.078]
[1733356149308,2.6395058,3834.6,3833.8,1.078]
[1733356149624,2.6394658,3834.6,3833.8,1.078]
[1733356149950,2.60796,3834.4,3833.8,1.078]
[1733356150137,2.60824,3834.0,3833.8,1.078]
[1733356150312,2.59982318,3834.0,3833.8,1.078]
[1733356150509,2.60811,3834.2,3833.8,1.078]
[1733356150715,2.60817,3834.1,3833.8,1.078]
[1733356150953,2.6398958,3834.0,3833.8,1.078]
[1733356151254,2.60826,3834.0,3833.8,1.078]
[1733356151450,2.60804,3834.3,3833.8,1.078]
[1733356151652,2.60718,3835.6,3833.8,1.078]
[1733356151653,3.0,3835.5,3833.8,1.078]
[1733356151853,3.0,3835.5,3833.1,0.0260841]
[1733356151854,2.60742,3835.3,3834.1,1.1649]
[1733356152017,2.60786,3834.6,3834.1,1.1649]
[1733356152211,0.0316358,3835.0,3834.1,1.1649]
[1733356152413,0.1357936,3835.7,3834.1,1.1649]
[1733356152677,0.1357936,3835.7,3834.2,1.1649]
[1733356152958,0.1357936,3835.7,3834.6,2.6078]
[1733356153154,0.1357936,3835.7,3834.4,1.1649]
[1733356153155,2.7428936,3835.7,3834.7,1.1649]
[1733356153475,0.1357936,3835.7,3834.7,1.1649]
[1733356153762,0.1357936,3835.7,3834.3,0.377306]
[1733356153912,0.0316358,3836.9,3834.9,3.55]
[1733356154114,0.1357612,3836.8,3835.8,3.77191]
[1733356154513,0.1357612,3836.8,3835.8,1.1649]
[1733356154746,2.7420912,3836.8,3835.8,1.1649]
[1733356155063,0.1357612,3836.8,3835.8,3.77191]
[1733356155348,0.1357612,3836.8,3834.6,1.1649]
[1733356155349,8.79,3836.2,3834.6,1.1649]
[1733356155558,2.60729,3835.4,3834.6,1.1649]
[1733356155739,0.0316358,3835.3,3834.6,1.33464105]
[1733356155918,3.0,3835.7,3834.6,1.33464105]
[1733356155919,0.0316358,3835.6,3834.6,1.1649]
[1733356156119,2.60744,3835.2,3834.6,1.1649]
[1733356157016,0.0316358,3835.9,3834.6,1.1649]
[1733356157541,2.6073,3835.4,3834.6,1.1649]
[1733356157713,8.79,3836.3,3834.6,1.1649]
[1733356157714,2.6389958,3835.3,3834.6,1.542187]
[1733356157914,2.60706,3835.8,3834.6,1.542187]
[1733356157915,0.0316358,3835.7,3834.6,1.1649]
[1733356158114,2.60737,3835.3,3834.6,1.1649]
[1733356158954,2.60722,3835.5,3834.6,1.1649]
[1733356159716,2.60722,3835.5,3831.2,3.45661041]
[1733356159717,2.60735,3835.3,3834.0,1.0555]
[1733356159941,0.2,3836.2,3834.0,1.0555]
[1733356159942,2.60761,3835.0,3834.0,1.0555]
[1733356160151,2.60777,3834.7,3834.0,1.0555]
[1733356160328,0.0316358,3834.9,3834.0,1.0555]
[1733356160528,2.60789,3834.6,3834.0,1.0555]
[1733356160725,2.60761,3835.0,3834.0,1.0555]
[1733356160726,0.0316358,3835.0,3834.0,1.0555]
[1733356160928,2.60778,3834.7,3834.0,1.0555]
[1733356161665,2.60749,3835.2,3834.0,1.0555]
[1733356161834,2.6387858,3835.6,3834.1,0.36638]
[1733356162162,0.55,3835.3,3834.0,3.66372]
[1733356162321,0.55,3835.5,3834.0,3.66372]
[1733356162518,3.15726,3835.5,3834.0,1.0555]
[1733356162745,2.60759,3835.0,3834.0,1.0555]
[1733356163058,2.60742,3835.2,3834.0,3.66374]
[1733356163259,2.60803,3834.4,3833.5,1.0555]
[1733356163464,2.60817,3834.1,3833.5,1.0555]
[1733356163756,2.60831,3833.9,3833.5,1.0555]
[1733356163955,0.0316358,3833.8,3833.1,1.0555]
[1733356164157,2.60844,3833.7,3833.1,1.0555]
[1733356164369,2.60875,3833.3,3831.7,1.0555]
[1733356164532,0.0316358,3833.2,3831.7,1.0555]
[1733356164722,0.5816358,3833.2,3831.8,2.60973]
[1733356164922,2.60899,3832.9,3831.8,2.60973]
[1733356165129,2.60899,3832.9,3831.9,0.366523]
[1733356165632,0.5816358,3833.2,3831.9,0.366523]
[1733356165826,0.5816358,3833.2,3831.7,1.0555]
[1733356165827,2.60919,3832.7,3831.7,1.0555]
[1733356166132,0.5816358,3833.2,3831.7,1.0555]
[1733356166133,2.60941,3832.3,3831.7,1.0555]
[1733356166525,0.0316358,3832.2,3831.7,1.0555]
[1733356166732,0.55,3832.4,3831.7,1.0555]
[1733356167259,0.55,3832.5,3831.7,1.0555]
[1733356167772,0.0316358,3833.0,3831.7,1.0555]
[1733356167966,0.55,3832.8,3831.8,0.366542]
[1733356168127,0.55,3832.6,3831.7,1.0555]
[1733356168527,0.55,3832.8,3831.7,1.0555]
[1733356169072,0.0316358,3833.3,3831.7,1.0555]
[1733356169274,2.60905,3832.9,3831.7,1.0555]
[1733356169455,0.55,3832.8,3831.7,1.0555]
[1733356169664,0.55,3832.8,3831.8,0.366532]
[1733356169825,0.55,3832.8,3831.8,2.976262]
[1733356170163,0.55,3833.0,3831.9,2.60965]
[1733356170372,8.79,3833.3,3832.4,1.085]
[1733356171439,0.0316358,3833.2,3832.4,1.085]
[1733356171641,0.0316358,3833.2,3832.2,2.60946]
[1733356171842,0.5816358,3833.2,3832.2,2.60946]
[1733356172176,0.5816358,3833.2,3832.0,3.69459]
[1733356172473,3.1904458,3833.2,3832.0,3.69459]
[1733356173174,0.5816358,3833.2,3832.0,1.454459]
[1733356173357,0.5816358,3833.2,3832.1,2.60952]
[1733356173563,0.0316358,3833.2,3832.0,1.085]
[1733356173764,0.0316358,3833.2,3832.2,2.60946]
[1733356173944,0.0316358,3833.2,3832.0,1.085]
[1733356174147,0.0316358,3833.2,3832.1,2.60953]
[1733356174360,0.0316358,3833.2,3832.0,1.085]
[1733356174621,0.55,3833.0,3832.4,2.6093]
[1733356174898,2.60804,3834.3,3833.0,2.60892]
[1733356175171,0.13594144,3833.6,3833.0,1.0669]
[1733356175533,2.60801,3834.4,3833.2,2.60873]
[1733356175736,0.13593672,3833.8,3833.4,2.60858]
[1733356176041,0.0316358,3834.3,3833.5,2.60857]
[1733356176268,0.13592941,3834.0,3833.5,2.60857]
[1733356176435,0.13592941,3834.0,3833.0,3.67581]
[1733356176631,0.13592941,3834.0,3833.1,0.367581]
[1733356176832,0.0316358,3833.9,3832.5,2.60921]
[1733356177078,2.60854,3833.6,3832.5,1.0952]
[1733356177386,2.60854,3833.6,3831.5,3.0]
[1733356177387,2.60877,3833.3,3832.1,3.70473]
[1733356177535,2.6404158,3833.2,3832.1,1.0952]
[1733356178287,0.0316358,3833.2,3832.1,1.0952]
[1733356178583,3.15911,3832.8,3831.5,2.60993]
[1733356178785,0.0316358,3832.7,3831.6,2.60984]
[1733356179148,0.0316358,3832.7,3831.7,2.60978]
[1733356179552,0.0316358,3832.7,3831.5,0.3966139]
[1733356179765,0.0316358,3832.7,3831.7,2.60975]
[1733356179967,0.0316358,3832.7,3831.5,0.3966139]
[1733356179968,0.0316358,3832.8,3832.0,2.6096]
[1733356180146,2.60886,3833.1,3831.8,0.30063639]
[1733356180147,0.5816358,3833.2,3832.1,2.60953]
[1733356180335,8.79,3833.3,3832.3,2.60937]
[1733356180533,5.60842,3833.8,3831.9,1.0952]
[1733356180534,2.60851,3833.7,3832.5,2.60923]
[1733356180752,0.0316358,3833.6,3832.5,2.60923]
[1733356180951,2.6401458,3833.6,3832.5,2.870153]
[1733356181280,0.0316358,3833.6,3832.6,2.60918]
[1733356181859,0.0316358,3833.6,3832.7,1.0952]
[1733356182102,0.16756521,3834.0,3832.7,1.0952]
[1733356182384,0.16756521,3834.0,3833.0,2.60891]
[1733356182567,0.16756521,3834.0,3833.1,0.260891]
[1733356182770,0.16756521,3834.0,3833.1,2.869721]
[1733356183087,0.13592941,3834.0,3833.1,0.260891]
[1733356183243,0.13592941,3834.0,3833.6,1.0952]
[1733356183438,0.13592941,3834.0,3833.6,3.7037]
[1733356183637,0.13592941,3834.0,3833.6,1.0952]
[1733356183845,0.0316358,3834.7,3833.7,2.60843]
[1733356184046,8.79,3834.2,3832.5,1.0952]
[1733356184274,8.79,3834.2,3832.5,3.70445]
[1733356184275,0.0316358,3834.1,3832.5,3.70445]
[1733356184445,2.60824,3834.0,3832.5,1.765645]
[1733356184700,2.60858,3833.6,3832.5,1.765645]
[1733356184893,0.0316358,3833.5,3832.5,1.765645]
[1733356185100,0.5816358,3833.5,3832.5,1.765645]
[1733356185512,0.5816358,3833.5,3831.7,3.0]
[1733356185513,2.60886,3833.1,3832.0,3.70477]
[1733356185724,0.0316358,3834.0,3832.0,1.0952]
[1733356185943,0.55,3833.5,3832.3,2.60933]
[1733356186100,0.0316358,3833.4,3832.3,2.60933]
[1733356186301,2.60871,3833.3,3831.7,2.60977]
[1733356186531,0.55,3832.8,3831.7,2.60977]
[1733356186718,0.55,3832.8,3831.8,2.60967]
[1733356186918,0.55,3832.8,3831.6,1.0952]
[1733356186919,0.0316358,3833.2,3831.6,1.0952]
[1733356187115,0.55,3833.5,3832.2,2.6094]
[1733356187456,2.6082,3834.1,3832.9,2.60897]
[1733356187658,2.60824,3834.0,3833.0,1.0952]
[1733356187954,8.79,3834.2,3831.7,0.52498982]
[1733356187955,2.60845,3833.7,3832.6,3.70437]
[1733356188110,0.0316358,3833.6,3832.6,3.70437]
[1733356188643,0.0316358,3833.6,3832.6,1.0952]
[1733356188852,0.55,3833.8,3832.7,2.6091]
[1733356189007,0.0316358,3833.9,3833.0,2.60891]
[1733356189405,0.0316358,3833.9,3831.9,3.0]
[1733356189659,0.55,3833.5,3832.4,2.60932]
[1733356189855,0.55,3833.5,3832.6,1.0775]
[1733356189856,0.5816358,3833.5,3832.6,1.0775]
[1733356190014,0.0316358,3833.5,3832.6,1.446175]
[1733356190215,0.55,3833.7,3832.8,2.60905]
[1733356190424,0.55,3833.7,3832.6,1.446175]
[1733356190425,0.5816358,3833.9,3832.6,1.446175]
[1733356190735,3.1899558,3833.9,3832.7,2.60911]
[1733356190909,3.1899558,3833.9,3832.8,2.60902]
[1733356191112,3.1899558,3833.9,3832.8,3.0145395]
[1733356191406,0.55,3833.9,3832.9,2.60898]
[1733356191815,5.74391346,3834.4,3832.8,3.0145495]
[1733356191816,0.13589346,3834.4,3832.8,3.0145495]
[1733356192145,0.13589346,3834.4,3833.5,1.1245]
[1733356192367,0.13589346,3834.4,3833.5,3.73306]
[1733356192512,2.60818,3834.1,3832.6,3.13598542]
[1733356192712,0.0316358,3834.0,3832.6,0.52681542]
[1733356192912,2.6398758,3834.0,3832.9,2.60898]
[1733356193367,2.6398758,3834.0,3832.6,0.52681542]
[1733356193368,8.8216358,3834.0,3832.6,0.52681542]
[1733356193513,8.79,3834.0,3832.6,0.52681542]
[1733356193716,0.55,3833.9,3832.6,0.52681542]
[1733356194051,0.55,3833.9,3833.2,2.60877]
[1733356194238,0.55,3833.9,3833.3,1.1619]
[1733356195010,8.79,3834.0,3833.3,1.1619]
[1733356195435,0.13589346,3834.4,3833.6,2.60845]
[1733356195639,0.13589346,3834.4,3833.3,1.53897]
[1733356195640,0.13589346,3834.4,3833.9,2.60825]
[1733356195815,0.13589346,3834.4,3833.3,0.37707]
[1733356196021,2.74391346,3834.4,3833.3,2.60871]
[1733356196225,2.74391346,3834.4,3832.8,1.1068]
[1733356196226,2.6396858,3834.3,3833.1,2.60884]
[1733356196725,2.60805,3834.3,3833.1,2.60884]
[1733356197024,0.55,3834.3,3833.3,2.6087]
[1733356197775,9.86216449,3835.3,3833.0,0.52585875]
[1733356197776,8.79,3835.5,3833.1,1.1383]
[1733356198069,0.13584974,3835.0,3834.2,2.60804]
[1733356198276,0.13584974,3835.0,3834.1,1.1383]
[1733356198437,1.07216449,3836.0,3834.1,1.1383]
[1733356198438,11.39689,3836.0,3834.7,2.6077]
[1733356198624,0.1358331,3835.6,3834.1,3.74647]
[1733356198829,0.1358331,3835.6,3834.9,3.75397]
[1733356199257,0.1358331,3835.6,3834.9,1.1464]
[1733356199461,0.1358331,3835.6,3835.1,2.60749]
[1733356199662,0.1358331,3835.6,3835.2,2.60739]
[1733356199870,0.1358331,3835.6,3834.4,0.53049166]
[1733356200069,0.1358331,3835.6,3834.8,2.60767]
[1733356200578,0.1358331,3835.6,3834.8,3.75407]
[1733356201086,0.55,3835.5,3834.9,2.60761]
[1733356201267,0.55,3835.5,3834.8,1.1464]
[1733356201791,0.5816358,3835.5,3834.8,1.1464]
[1733356202137,0.55,3835.5,3834.8,1.1464]
[1733356202396,0.55,3835.5,3834.8,1.56386739]
[1733356202679,0.55,3835.5,3834.8,4.17155739]
[1733356203238,0.55,3835.5,3834.8,1.56386739]
[1733356203453,3.15722,3835.5,3834.5,0.42051387]
[1733356203657,0.55,3835.5,3834.5,3.02836387]
[1733356204000,0.1358331,3835.6,3834.5,0.42051387]
[1733356204292,8.79,3836.5,3835.4,2.60728]
[1733356204590,0.13592642,3836.4,3835.5,2.6072]
[1733356204792,0.13592642,3836.4,3835.6,2.60712]
[1733356204951,0.13592642,3836.4,3835.4,1.67375167]
[1733356205152,0.13592642,3836.4,3835.4,2.10185584]
[1733356205361,0.13592642,3836.4,3835.4,4.70912584]
[1733356205789,0.55,3836.3,3835.4,4.70912584]
[1733356205997,0.55,3836.3,3835.4,0.52755167]
[1733356205998,0.5816358,3836.3,3835.4,0.52755167]
[1733356206490,0.5816358,3836.3,3835.0,3.75555]
[1733356206491,2.60674,3836.2,3835.0,3.75555]
[1733356206668,0.55,3836.1,3835.0,3.75555]
[1733356207001,0.55,3836.3,3835.2,3.13146934]
[1733356207287,0.55,3836.3,3835.3,2.60735]
[1733356207454,0.5816358,3836.3,3835.3,2.60735]
[1733356207652,0.55,3836.3,3835.2,0.52405934]
[1733356207853,0.55,3836.3,3835.3,0.16720593]
[1733356208263,0.13592642,3836.4,3835.8,2.60701]
[1733356208668,0.0316358,3836.9,3835.9,2.60694]
[1733356208863,0.16754422,3836.9,3835.8,1.0815]
[1733356209067,0.13590842,3836.9,3835.8,1.0815]
[1733356209269,0.13590842,3836.9,3836.3,0.52684792]
[1733356209490,0.12757178,3836.9,3836.3,0.52684792]
[1733356209686,0.0316358,3837.3,3836.3,0.52684792]
[1733356210300,2.60597,3837.4,3836.3,3.13351792]
[1733356210597,0.55,3837.3,3836.3,3.13351792]
[1733356210754,0.55,3837.3,3836.3,3.44686971]
[1733356210962,3.156,3837.3,3836.3,0.31335179]
[1733356211169,3.156,3837.3,3836.1,2.6068]
[1733356211170,0.0316358,3837.2,3836.1,2.6068]
[1733356211866,0.0316358,3837.2,3836.2,0.52815084]
[1733356212201,8.79,3837.9,3836.3,1.0594]
[1733356212400,2.6056,3837.9,3836.8,2.60632]
[1733356212608,11.3953,3838.4,3836.9,0.260632]
[1733356212764,0.13589499,3837.9,3836.9,0.260632]
[1733356212961,2.60523,3838.5,3837.2,2.60606]
[1733356213197,2.60523,3838.5,3837.0,1.0745]
[1733356213400,2.60532,3838.3,3837.4,0.5083986]
[1733356213608,0.0316358,3838.5,3837.4,0.5083986]
[1733356213609,0.0316358,3838.2,3837.4,3.1143286]
[1733356214069,0.0316358,3838.2,3837.4,0.5083986]
[1733356214418,2.60511,3838.7,3837.5,2.60585]
[1733356215074,2.60514,3838.6,3837.5,2.60585]
[1733356215273,2.60518,3838.5,3837.5,2.60585]
[1733356215583,8.79,3838.9,3837.5,2.60585]
[1733356215778,0.55,3838.6,3837.6,2.60577]
[1733356216095,2.60475,3839.2,3837.6,2.60577]
[1733356216096,2.60475,3839.2,3838.0,2.6055]
[1733356216612,8.79,3839.3,3837.8,1.1198]
[1733356216613,2.60484,3839.0,3837.8,3.72545]
[1733356216904,8.79,3839.3,3837.6,0.31402262]
[1733356216905,2.60505,3838.7,3837.6,2.91980262]
[1733356217127,0.0316358,3838.6,3837.6,2.91980262]
[1733356217408,0.0316358,3838.6,3837.4,1.0599]
[1733356217703,0.0316358,3838.6,3837.4,3.66582]
[1733356217890,0.55,3838.4,3837.4,1.0599]
[1733356218103,0.0316358,3838.3,3837.9,0.5126295]
[1733356219090,0.0316358,3838.4,3837.9,0.5126295]
[1733356219293,0.55,3838.6,3837.9,0.5126295]
[1733356219482,2.60468,3839.3,3837.9,3.1182095]
[1733356219483,0.55,3838.7,3837.9,3.1182095]
[1733356219683,0.55,3838.8,3837.9,0.5126295]
[1733356219902,0.0316358,3838.6,3837.9,0.5126295]
[1733356220288,0.55,3838.8,3838.0,1.0777]
[1733356220624,0.13585142,3838.9,3838.0,1.0777]
[1733356220816,0.13585142,3838.9,3838.0,3.68322]
[1733356220975,0.13585142,3838.9,3838.0,1.49728495]
[1733356221310,6.61438504,3840.9,3838.9,2.6049]
[1733356221311,2.60409,3840.1,3838.9,2.6049]
[1733356221516,2.60396,3840.3,3839.0,3.70412]
[1733356221675,0.1358102,3840.3,3839.0,1.0993]
[1733356222016,0.1358102,3840.3,3839.3,2.60464]
[1733356222417,0.1358102,3840.3,3839.4,0.51757499]
[1733356222772,0.1358102,3840.3,3839.1,2.60476]
[1733356223108,0.1358102,3840.3,3839.1,0.53123095]
[1733356223414,0.55,3840.2,3839.2,3.12111911]
[1733356223615,0.5816358,3840.2,3839.2,0.51642911]
[1733356223811,2.60418,3840.0,3839.0,1.0993]
[1733356223974,0.0316358,3839.9,3839.0,1.0993]
[1733356224171,0.5816358,3839.9,3839.0,1.0993]
[1733356224415,0.55,3840.2,3839.0,1.0993]
[1733356224624,0.55,3840.2,3839.2,2.60469]
[1733356224914,0.55,3840.2,3839.1,0.16268754]
[1733356224915,0.0316358,3840.1,3839.1,0.16268754]
[1733356225623,0.0316358,3840.1,3838.9,0.52757543]
[1733356225624,3.15403,3840.2,3838.9,0.52757543]
[1733356225917,2.60432,3839.8,3838.9,0.52757543]
[1733356226085,0.5816358,3839.7,3838.9,0.52757543]
[1733356226291,0.0316358,3840.1,3838.9,0.99040297]
[1733356226611,2.60425,3839.9,3838.9,0.52757543]
[1733356226788,0.0316358,3839.8,3838.9,0.52757543]
[1733356226985,0.55,3840.0,3838.9,3.13248543]
[1733356227203,0.1358102,3840.3,3839.2,2.60468]
[1733356227391,0.1358102,3840.3,3839.3,2.60461]
[1733356227919,2.6037,3840.7,3839.4,2.60454]
[1733356228122,2.6037,3840.7,3839.5,2.60448]
[1733356228287,2.60357,3840.9,3839.6,2.60443]
[1733356228489,2.60357,3840.9,3839.0,0.31324854]
[1733356228490,2.60357,3840.9,3839.8,1.0529]
[1733356228693,0.0316358,3841.2,3839.8,1.0529]
[1733356229009,2.60342,3841.1,3840.1,0.51814172]
[1733356229211,2.60349,3841.0,3840.1,0.51814172]
[1733356229391,2.60299,3841.8,3840.1,0.93566889]
[1733356229582,2.60328,3841.3,3840.2,2.60402]
[1733356229807,2.60328,3841.3,3840.1,0.51814172]
[1733356230506,0.0316358,3841.7,3840.2,1.0529]
[1733356230701,8.79,3842.0,3840.2,1.0529]
[1733356230702,2.60314,3841.6,3840.2,3.65691]
[1733356230940,2.60281,3842.0,3840.2,3.65691]
[1733356230941,2.6344458,3842.0,3840.3,0.71750517]
[1733356231142,0.0316358,3842.0,3840.4,1.0529]
[1733356231343,8.79,3842.2,3840.4,3.65678]
[1733356231344,2.60301,3841.7,3840.4,3.65678]
[1733356231641,0.0316358,3842.1,3840.5,0.43742852]
[1733356231949,0.55,3841.6,3840.6,1.1667]
[1733356232152,2.60289,3841.9,3840.6,1.1667]
[1733356232445,11.39259,3842.4,3840.6,1.1667]
[1733356232446,0.0316358,3842.3,3840.7,2.60369]
[1733356232752,0.0316358,3842.3,3840.8,0.377039]
[1733356232753,2.60288,3841.9,3840.8,0.377039]
[1733356232933,2.60288,3841.9,3840.9,0.51257086]
[1733356233132,2.60274,3842.1,3840.9,0.51257086]
[1733356233445,0.0316358,3842.0,3840.9,0.51257086]
[1733356233650,0.55,3841.9,3840.9,0.97857485]
[1733356233852,3.1845758,3841.9,3840.9,0.97857485]
[1733356234214,3.15288,3841.9,3841.0,1.0881]
[1733356234440,2.6345858,3841.8,3841.0,1.0881]
[1733356234845,0.0316358,3841.8,3841.0,0.00367494]
[1733356235120,0.55,3841.9,3841.0,0.00367494]
[1733356236029,0.0316358,3841.8,3841.0,0.00367494]
[1733356237051,2.60301,3841.7,3841.0,0.00367494]
[1733356237231,0.55,3841.3,3838.9,0.1]
[1733356237557,0.0316358,3841.2,3839.0,0.31653824]
[1733356237727,0.55,3841.1,3839.9,1.0557]
[1733356238236,0.55,3841.1,3840.4,0.52714856]
[1733356238559,3.15345,3841.1,3840.4,0.52714856]
[1733356240515,0.55,3841.1,3840.4,0.52714856]
[1733356240758,2.60328,3841.3,3840.4,0.52714856]
[1733356241465,2.60328,3841.3,3840.5,1.0148]
[1733356241629,3.15322,3841.4,3840.5,1.0148]
[1733356241837,0.55,3841.2,3840.5,1.0148]
[1733356242060,2.6350558,3841.1,3840.4,0.52714856]
[1733356242824,2.60342,3841.1,3840.4,0.52714856]
[1733356243020,0.55,3841.2,3840.4,0.52714856]
[1733356243321,3.15336,3841.2,3840.4,0.52714856]
[1733356243634,0.55,3841.2,3840.4,0.68919342]
[1733356243944,0.55,3841.3,3840.4,0.68919342]
[1733356246530,2.60324,3841.4,3840.4,0.68919342]
[1733356246858,0.463,3841.6,3840.4,3.29306342]
[1733356246859,0.55,3841.5,3840.4,3.29306342]
[1733356247066,0.55,3841.5,3840.5,0.43863634]
[1733356247955,0.0316358,3841.9,3840.7,1.0073]
[1733356247956,0.55,3841.7,3840.7,1.0073]
[1733356248158,2.60281,3842.0,3840.9,2.60354]
[1733356248427,0.463,3842.3,3841.0,2.964554]
[1733356248632,0.0316358,3842.2,3841.0,2.60347]
[1733356248830,2.60274,3842.1,3841.1,2.60341]
[1733356249077,2.60274,3842.1,3841.3,0.51492651]
[1733356249227,0.0316358,3842.0,3841.3,0.51492651]
[1733356249734,3.06487,3843.4,3841.7,1.0489]
[1733356249932,0.463,3843.4,3842.0,1.0848]
[1733356250236,0.463,3843.4,3842.3,2.60254]
[1733356250546,0.463,3843.4,3842.5,2.60245]
[1733356250746,3.06466,3843.7,3842.5,2.60245]
[1733356250983,2.60151,3844.0,3842.8,2.60225]
[1733356251275,0.13569584,3843.7,3842.8,3.13549796]
[1733356251473,0.13569584,3843.7,3842.8,0.53324796]
[1733356251771,0.1628794,3844.4,3843.0,1.0307]
[1733356251972,2.60126,3844.3,3843.0,1.0307]
[1733356252303,2.73693331,3844.3,3843.1,2.60205]
[1733356252755,0.13567331,3844.3,3843.0,1.0307]
[1733356252933,0.1628794,3844.4,3843.2,1.0307]
[1733356253128,0.1628794,3844.4,3843.4,2.60179]
[1733356253373,0.1628794,3844.4,3843.4,1.0307]
[1733356253571,0.1628794,3844.4,3843.6,3.12525658]
[1733356253874,0.1628794,3844.4,3843.7,2.60162]
[1733356254168,0.1628794,3844.4,3844.2,2.60126]
[1733356254369,0.1628794,3844.4,3844.3,0.260126]
[1733356255648,0.1628794,3844.4,3844.3,6.888576]
[1733356256080,0.1628794,3844.4,3844.3,7.41259073]
[1733356256464,0.1628794,3844.4,3844.3,1.81134073]
[1733356256779,0.1628794,3844.4,3843.4,1.0594]
[1733356257186,0.1628794,3844.4,3843.6,4.0462]
[1733356257351,0.1628794,3844.4,3843.6,1.0462]
[1733356257570,0.1628794,3844.4,3844.1,4.0462]
[1733356257887,0.1628794,3844.4,3844.2,0.02601073]
[1733356258266,0.1628794,3844.4,3844.1,4.0462]
[1733356258589,0.1628794,3844.4,3844.2,2.6013]
[1733356258752,0.1628794,3844.4,3844.3,3.0]
[1733356258952,0.1628794,3844.4,3844.3,4.65440474]
[1733356259155,0.1628794,3844.4,3844.3,1.0359]
[1733356259843,0.1628794,3844.4,3844.0,0.52504737]
[1733356261395,0.1628794,3844.4,3844.1,1.0238]
[1733356263217,0.1628794,3844.4,3844.0,0.52504737]
[1733356263509,0.1628794,3844.4,3843.9,0.52246798]